Cogmind - Beta 14 @@@ ROGUE MODE // 2025.03.26 @ 00:03:16 Player: SelfCookedBird Result: Destroyed by H-61 Shepherd with Heavy Assault Cannon Performance ------------- Evolutions (2) 1000 Regions Visited (4) 800 Robots Destroyed (26) 130 Value Destroyed (680) 680 Prototype IDs (2) 40 Alien Tech Used (0) 0 Bonus (200) 200 TOTAL SCORE: 2850 Bonus ------- Pacifist 200 Cogmind --------- Core Integrity 0/550 Matter 170/300 Energy 40/100 System Corruption 1% Temperature Cool (0) Movement Core (50) Location -8/Materials Parts ------- > --- POWER (1) -------- (None) > --- PROPULSION (4) --- (None) > --- UTILITY (3) ------ Medium Storage Unit Advanced Weight Redist. System > --- WEAPON (3) ------- (None) > --- INVENTORY (10) --- Huge Storage Unit High-capacity Matter Pod (0) Mining Laser Peak State ------------ > --- POWER ------------ Heavy Ion Engine > --- PROPULSION ------- Light Treads Aluminum Leg Aluminum Leg Improved Aluminum Leg > --- UTILITY ---------- Medium Storage Unit Advanced Weight Redist. System Improved Light Armor Plating > --- WEAPON ----------- Assault Rifle Advanced EMP Blaster Katana > --- INVENTORY -------- Light Ion Engine Light Deuterium Engine Compact Wheel Compact Wheel Improved Hover Unit Huge Storage Unit High-capacity Matter Pod Power Shielding Missile Launcher Mining Laser [Rating: 24] Favorites ----------- Power Ion Engine Engine Ion Engine Propulsion Aluminum Leg Treads Light Treads Leg Aluminum Leg Wheel Compact Wheel Hover Unit Improved Hover Unit Utility Power Shielding Device Advanced Weight Redist. System Storage Small Storage Unit Protection Power Shielding Weapon Grenade Launcher Ballistic Gun Assault Rifle Launcher Grenade Launcher Special Weapon Mining Laser Slashing Weapon Katana Build | -11 -10 -10 -9 -8 ------- Run | Yrd Mat Min Mat Mat Slots Evolved 4 | . . . 2 2 Power . | . . . . . Propulsion 2 | . . . 2 . Utility 1 | . . . . 1 Weapon 1 | . . . . 1 Parts Attached 29 | 6 2 1 4 16 Power 4 | 1 . . . 3 Engine 4 | 1 . . . 3 Core . | . . . . . Reactor . | . . . . . Propulsion 9 | 2 . . 4 3 Treads 2 | . . . 2 . Leg 4 | 2 . . 2 . Wheel 2 | . . . . 2 Hover 1 | . . . . 1 Flight . | . . . . . Utility 7 | 1 1 . . 5 Device 1 | . . . . 1 Storage 3 | 1 . . . 2 Processor . | . . . . . Hackware . | . . . . . Protection 3 | . 1 . . 2 Artifact . | . . . . . Weapon 9 | 2 1 1 . 5 Energy Gun . | . . . . . Energy Cannon . | . . . . . Ballistic Gun 3 | 2 . . . 1 Ballistic Cannon . | . . . . . Launcher 4 | . 1 . . 3 Special Weapon 1 | . . 1 . . Impact Weapon . | . . . . . Slashing Weapon 1 | . . . . 1 Piercing Weapon . | . . . . . Special Melee Weapon . | . . . . . Unidentified Prototypes 2 | . . . . 2 Parts Lost 14 | . . . . 14 Power 2 | . . . . 2 Propulsion 7 | . . . . 7 Utility 1 | . . . . 1 Weapon 4 | . . . . 4 Highest Loss Streak 14 | . . . . 14 To Critical Strikes . | . . . . . Average Slot Usage (%) 96 | . 97 100 100 95 Engine 9 | . 14 14 11 8 Treads 9 | . . . 18 8 Leg 25 | . 28 28 25 25 Storage 10 | . 14 14 11 9 Protection 14 | . 11 14 11 15 Ballistic Gun 7 | . 15 . . 8 Launcher 9 | . 12 14 11 8 Special Weapon 5 | . . 14 11 3 Slashing Weapon 3 | . . . . 5 Peak Build Rating 24 | 6 7 7 10 24 Average Rating 13 | 4 6 7 9 16 On Entrance 6 | . 6 7 7 10 Naked Turns . | . . . . . Heaviest Build 32 | 12 15 15 15 32 Greatest Support 42 | 20 20 20 33 42 Greatest Overweight (x) 1 | . . . . 1 Average Overweight (x) . | . . . . . Largest Inventory Capacity 25 | 8 8 8 8 25 Average Capacity 8 | 6 8 8 8 9 Most Carried 10 | 6 8 8 8 10 Average Carried 7 | 3 6 8 7 8 Final Capacity 10 | 8 8 8 8 10 Final Carried 8 | 6 8 8 8 3 Class Distribution -------------------- 76% | Mutant 23% | Bomber Dominant Class ---------------- Mutant | -10/Materials Mutant | -10/Mines Mutant | -9/Materials Mutant | -8/Materials Resources | -11 -10 -10 -9 -8 ----------- Run | Yrd Mat Min Mat Mat Matter Collected 618 | 226 . . 107 285 Remotely . | . . . . . Salvage Created 412 | . . . 135 277 Parts 26 | . . . 8 18 Haulers Intercepted . | . . . . . Recyclers Shooed 1 | . . . 1 . Parts Field Recycled . | . . . . . Retrieved Matter . | . . . . . Parts Self-Destructed . | . . . . . Prevented . | . . . . . Kills | -11 -10 -10 -9 -8 ------- Run | Yrd Mat Min Mat Mat Combat Hostiles Destroyed 20 | . . . 6 14 Melee 1 | . . . . 1 AOE 19 | . . . 6 13 Classes Destroyed 9 | . . . 6 3 Worker 1 | . . . 1 . Recycler 2 | . . . 2 . Operator 1 | . . . 1 . Watcher 2 | . . . 1 1 Swarmer 12 | . . . 4 8 Grunt 4 | . . . . 4 Sentry 2 | . . . 2 . Specialist 1 | . . . . 1 Hunter 1 | . . . . 1 Best Kill Streak 7 | . . . 7 7 Combat Bots Only 7 | . . . 5 7 Max Kills in Single Turn 3 | . . . 2 3 Gunslinging . | . . . . . Exploded 3 | . . . 2 3 Melee 1 | . . . . 1 Uniques/NPCs Destroyed . | . . . . . Combat | -11 -10 -10 -9 -8 -------- Run | Yrd Mat Min Mat Mat Hostile Shots Fired 170 | . . . 38 132 Missed 64 | . . . 19 45 Damage Taken 1852 | . 14 . 214 1624 Core 596 | . . . 22 574 Absorbed by Shields . | . . . . . Redirected to Shielding 51 | . . . 16 35 Core Remaining (%) 98 | 100 . 100 94 . Volleys Fired 33 | 3 1 . 18 11 Largest 2 | 1 2 . 2 2 Hottest 130 | 20 50 . 130 56 Shots Fired 44 | 3 2 . 19 20 Gun 13 | 3 1 . . 9 Cannon . | . . . . . Launcher 30 | . 1 . 18 11 Special 1 | . . . 1 . Kinetic 13 | 3 1 . . 9 Thermal 1 | . . . 1 . Explosive 27 | . 1 . 18 8 Electromagnetic 3 | . . . . 3 Robot Hit Streak 6 | 1 1 . 6 3 Robot Miss Streak 4 | 2 1 . 3 4 Penetration Max . | . . . . . Secondary Targets . | . . . . . Shots Hit Robots 20 | 1 1 . 7 11 Core Hits 50 | . 2 . 23 25 Critical Kills . | . . . . . Critical Parts Destroyed . | . . . . . Critical Strikes 1 | . . . . 1 Sever 1 | . . . . 1 Melee Attacks 3 | . . . . 3 Impact . | . . . . . Slashing 3 | . . . . 3 Piercing . | . . . . . Sneak Attacks 1 | . . . . 1 Combat Hostiles . | . . . . . Follow-up Attacks . | . . . . . Damage Inflicted 2007 | 7 20 . 692 1288 Guns 49 | 7 . . . 42 Cannons . | . . . . . Explosions 1818 | . 20 . 668 1130 Melee 116 | . . . . 116 Ramming . | . . . . . Kinetic 49 | 7 . . . 42 Thermal 145 | . . . 24 121 Explosive 1475 | . 20 . 668 787 Electromagnetic 222 | . . . . 222 Impact . | . . . . . Slashing 116 | . . . . 116 Piercing . | . . . . . Highest Corruption 1 | . . . . 1 Average Corruption 1 | . . . . 1 Corruption Purged . | . . . . . Corruption Blocked . | . . . . . Overload Shots . | . . . . . Overflow Damage 75 | . . . 10 65 Projectiles 3 | . . . 3 . Explosions 44 | . . . 7 37 Melee 28 | . . . . 28 Knockbacks . | . . . . . Impact . | . . . . . Kinetic . | . . . . . Secondary . | . . . . . Self-Inflicted Damage 190 | . 14 . 45 131 Shots 9 | . 1 . 2 6 Rammed . | . . . . . Targets Rammed . | . . . . . Kicked . | . . . . . Crushed . | . . . . . Highest Temperature 15 | . 10 . 15 13 Average Temperature 6 | . 7 . 7 6 Received Heat Transfer 252 | . . . 18 234 Siege Activations . | . . . . . Robots Corrupted . | . . . . . Combat Hostiles . | . . . . . Parts Fried 1 | . . . . 1 Impact Corruptions . | . . . . . Robots Melted . | . . . . . Combat Hostiles . | . . . . . Parts Melted . | . . . . . Heat Transferred 200 | . . . 50 150 Parts Sabotaged . | . . . . . Parts Stolen . | . . . . . Parts Stripped . | . . . . . Power Chain Reactions 1 | . . . . 1 Alert | -11 -10 -10 -9 -8 ------- Run | Yrd Mat Min Mat Mat Peak Influence 376 | . 24 14 376 376 Initial 158 | . . 9 5 158 Average 172 | . 6 9 172 230 Maximum Alert Level 1 | . . . 1 1 Low Security (%) 56 | 100 100 100 47 44 Level 1 43 | . . . 52 55 Level 2 . | . . . . . Level 3 . | . . . . . Level 4 . | . . . . . Level 5 . | . . . . . High Security . | . . . . . Max Security . | . . . . . Squads Dispatched 6 | . 1 . . 5 Investigation 1 | . . . . 1 Extermination . | . . . . . Reinforcement 4 | . 1 . . 3 Assault . | . . . . . Garrison 1 | . . . . 1 Intercept . | . . . . . Searches Triggered . | . . . . . Construction Impeded 1 | . . . . 1 Haulers Reinforced . | . . . . . Active Scanning Responses . | . . . . . Cargo Convoy Interrupts . | . . . . . Stealth | -11 -10 -10 -9 -8 --------- Run | Yrd Mat Min Mat Mat Distress Signals . | . . . . . Communications Jammed . | . . . . . Distress Signals . | . . . . . Times Spotted 32 | . . . 9 23 Peak Tracking Total 11 | . 1 . 5 11 Tactical Retreats 1 | . . . . 1 Traps | -11 -10 -10 -9 -8 ------- Run | Yrd Mat Min Mat Mat Traps Triggered 1 | . . . . 1 Indirectly . | . . . . . Trap Hack Attempts . | . . . . . Triggered . | . . . . . Disarmed . | . . . . . Reprogrammed . | . . . . . Reused . | . . . . . Traps Extracted . | . . . . . Installed . | . . . . . Triggered . | . . . . . Machines | -11 -10 -10 -9 -8 ---------- Run | Yrd Mat Min Mat Mat Machines Disabled 10 | . . . 4 6 Max in Single Turn 2 | . . . 1 2 Machines Repaired . | . . . . . Machines Dismantled . | . . . . . Machines Sabotaged . | . . . . . Overloaded Fab Kills . | . . . . . Hacking | -11 -10 -10 -9 -8 --------- Run | Yrd Mat Min Mat Mat Machines Accessed 3 | . 1 1 . 1 Terminals 3 | . 1 1 . 1 Fabricators . | . . . . . Repair Stations . | . . . . . Recycling Units . | . . . . . Scanalyzers . | . . . . . Garrison Access . | . . . . . Total Hacks 4 | . 2 1 . 1 Successful 4 | . 2 1 . 1 Failed . | . . . . . Catastrophic . | . . . . . Database Lockouts . | . . . . . Manual 1 | . 1 . . . Terminals 4 | . 2 1 . 1 Fabricators . | . . . . . Repair Stations . | . . . . . Recycling Units . | . . . . . Scanalyzers . | . . . . . Garrison Access . | . . . . . Terminal Hacks 4 | . 2 1 . 1 Record 3 | . 2 . . 1 Zone Layout 1 | . . 1 . . Fabricator Hacks . | . . . . . Repair Station Hacks . | . . . . . Recycling Unit Hacks . | . . . . . Scanalyzer . | . . . . . Garrison Access Hacks . | . . . . . Unauthorized Hacks . | . . . . . Terminals . | . . . . . Fabricators . | . . . . . Repair Stations . | . . . . . Recycling Units . | . . . . . Scanalyzers . | . . . . . Garrison Access . | . . . . . Data Cores Recovered . | . . . . . Used . | . . . . . Hacking Detections 1 | . . 1 . . Full Trace Events . | . . . . . Feedback Events . | . . . . . Feedback Blocked . | . . . . . Robot Schematics Acquired . | . . . . . Robots Built . | . . . . . Authchips . | . . . . . Time . | . . . . . Total Robot Build Rating . | . . . . . Part Schematics Acquired . | . . . . . Parts Built . | . . . . . Authchips . | . . . . . Time . | . . . . . Total Part Build Rating . | . . . . . Parts Repaired . | . . . . . Time . | . . . . . Parts Recycled . | . . . . . Recycled Matter . | . . . . . Retrieved Matter . | . . . . . Retrieved Components . | . . . . . Parts Scanalyzed . | . . . . . Part Schematics Acquired . | . . . . . Parts Damaged . | . . . . . Bothacking | -11 -10 -10 -9 -8 ------------ Run | Yrd Mat Min Mat Mat Used RIF Installer . | . . . . . Robots Hacked . | . . . . . Non-combat . | . . . . . Combat . | . . . . . Robot Hacks Applied . | . . . . . Relay Couplers Released . | . . . . . Fabnet Peak Effective % . | . . . . . Robots Rewired . | . . . . . Allies Hacked . | . . . . . Hacks Repelled . | . . . . . Allies | -11 -10 -10 -9 -8 -------- Run | Yrd Mat Min Mat Mat Total Allies . | . . . . . Largest Group . | . . . . . Highest-Rated Group . | . . . . . Highest-Rated Ally . | . . . . . Total Orders . | . . . . . Ally Attacks . | . . . . . Total Damage . | . . . . . Kills . | . . . . . Allies Corrupted . | . . . . . Allies Melted . | . . . . . Intel | -11 -10 -10 -9 -8 ------- Run | Yrd Mat Min Mat Mat Robot Analysis Total . | . . . . . Derelict Logs Recovered . | . . . . . Drone Launches . | . . . . . Drone Recoveries . | . . . . . Exploration | -11 -10 -10 -9 -8 ------------- Run | Yrd Mat Min Mat Mat Turns Passed 1219 | 111 101 40 229 738 Spaces Moved 839 | 74 78 33 150 504 Core 8 | 3 . . . 5 Treads . | . . . . . Legs 826 | 71 78 33 150 494 Wheels 5 | . . . . 5 Hover . | . . . . . Flight . | . . . . . Fastest Speed 50 | 50 120 120 120 100 Average Speed 119 | 117 120 120 120 119 Slowest Speed 120 | 120 120 120 120 120 Overloaded Moves . | . . . . . Propulsion Burnouts . | . . . . . Robots Hopped . | . . . . . Cave-ins Triggered . | . . . . . Exploration Rate (%) 15 | 4 14 15 17 28 Regions Visited 4 Branch Regions 1 Pre-discovered Areas . | . . . . . Known Exits Taken . | . . . . . Unknown Exits Taken 4 | 1 1 1 1 . Scrap Searched . | . . . . . Spaces Dug . | . . . . . Terrain Destroyed 125 | . 9 . 61 55 Melee . | . . . . . Projectile . | . . . . . AOE 125 | . 9 . 61 55 Terrain Rammed . | . . . . . Walls Destroyed . | . . . . . Machines Disabled . | . . . . . Actions | -11 -10 -10 -9 -8 --------- Run | Yrd Mat Min Mat Mat Total 1002 | 93 82 33 178 616 Wait 73 | 5 . . 4 64 Move 835 | 73 77 32 149 504 Hop . | . . . . . Pick Up 18 | 6 2 . 2 8 Fast Attach 9 | 6 1 . . 2 Attach 11 | . . . 2 9 Detach 2 | . . . . 2 Swap 9 | . 1 1 2 5 Drop 9 | . . . 1 8 Fire 33 | 3 1 . 18 11 Melee 3 | . . . . 3 Ram . | . . . . . Kick . | . . . . . Crush . | . . . . . Escape Stasis . | . . . . . Rewire . | . . . . . Trap . | . . . . . Miscellaneous . | . . . . . Route ------- -11/Scrapyard -10/Materials -10/Mines -9/Materials -8/Materials (discovered 1 exit: [*Fac]) History --------- Turn | Location | Event 7 | -11/Scrapyard | Discovered new exit (range 15) 112 | -11/Scrapyard | Entered Materials 184 | -10/Materials | Discovered new exit (range 11) 213 | -10/Materials | Entered Mines 237 | -10/Mines | Discovered new exit (range 8) 253 | -10/Mines | Entered Materials 253 | -9/Materials | Evolved 2 slots: Propulsion x2 313 | -9/Materials | Build established: Mutant 477 | -9/Materials | Discovered new exit (range 3) 482 | -9/Materials | Entered another Materials area 482 | -8/Materials | Evolved 2 slots: Utility x1, Weapon x1 1176 | -8/Materials | Discovered new exit (range 10) 1179 | -8/Materials | Garrison activated, responded to threat 1205 | -8/Materials | Core integrity fell below 50% 1219 | -8/Materials | Core integrity fell below 20% 1220 | -8/Materials | Destroyed by H-61 Shepherd with Heavy Assault Cannon Last Messages --------------- Missile Launcher destroyed. Destroyed Missile Launcher. X-57 Shotgunner destroyed. Knocked back. U-05 Engineer lays Concrete. Com. Wheel destroyed. U-05 Engineer lays Concrete. Lgt. Deuterium Engine destroyed. Acquired 4 matter. U-05 Engineer lays Concrete. Power Shielding destroyed. Knocked back. U-05 Engineer lays Concrete. X-57 Shotgunner IFF system glitched. U-05 Engineer destroyed. Com. Wheel destroyed. G-47 Trooper Aluminum Leg severed. G-47 Trooper destroyed. Lgt. Ion Engine destroyed. Katana destroyed. Map ----- +----------------------------------------------------+ | ???????????????????????????????????????????# """"" | | ???????????????????????????????????????????# """"" | | ???????????????????????????????????????????# """"" | | ???????????????????????????????????????????# """"" | | ???????????????????????????????????????????# | | ???????????????????????????????????????????# | | ???????????????????????????????????????????####### | | ???????????????????????????????????????########### | | ???????????????????????????????????????# | | ???????????????????????????????????????+ | | ???????????????????????????????????????# | | ???????????????????????????????????????### ####### | | ?????????????????????????????????????????# #?????# | | ???????????#???????????????????????????### ##????# | | ??????????? ?#####??????????????######## #????# | | ???????????? ?# ??????????????# #????# | | ????????????? # ??????????????# # | | ????????????? # ??????????????# """ " # """# | | ??????????????+ #??????????????# """ "" # """# | | ??????????????# #??????????????# """ """ # """# | | ??????????????# ########???????# """ """ #] """# | | ??????????????# # #???????# """ """ #? """# | | ??????????????# # !!! =#???????# #? + | | ??????????????# s g!! !#???????#####/######?#### | | ??????????????# *! g%! !############ #????# | | ??????????????# !%[%%!H%=@ % k #????# | | ??????????????# #|!=ggx############+#### #????# | | ??????????????#[ ###?????# """ ## ###### | | ???????????? ???????# "Y" ## ## ## | | ???????????" = %= ; ???????# # ##### | | ??????????"" # """ ??????# / | | ????????? # """??????# !! # | | ???????? # / """"??????# """ # | | ???????? # # ""?? ?????# """ #### | | ?????? ] # < # ??????????# """ # # | | ???????######?# # ??????????# # ## | | ??????????????#######??????################# | | ???????????????????????????# + | | ???????????????????????????# ############### | | ???????????????????????????# #????########### | | ???????????????????????????# !] #????# | | ???????????????????????????# ] #????# * | | ???????????????????????????# #????# | | ???????????????????????????########????# | | ???????????????????????????????????????# | | ???????????????????????????????????????# | | ???????????????????????????????????????########### | | | | | | | +----------------------------------------------------+ Best States ------------- Heat Dissipation 31 Energy Generation 14 Energy Capacity 280 Matter Stores 263 Matter Capacity 300 Sight Range 16 Terrain Scan Density 10 Additional Mass Support 9 Armor Coverage 150 Power Shielding 33 Evasion (%) 55 Item Schematics ----------------- None Robot Schematics ------------------ None Fabricated ------------ Nothing Alien Tech Used ----------------- None Achievements -------------- Risk Taker Troublemaker Challenges ------------ None Game ------ Seed MasterAerolevProcessor Manual? 0 Play Time 00:22:09 Cumulative 2.3 hours Start 2025.03.25 @ 23:42:12 End 2025.03.26 @ 00:03:16 Sessions 1 Manual Loads 0 Difficulty Rogue Special Mode None Game No. 6 Rogue 6 Adventurer 0 Explorer 0 Win Type - Total 0 Types 0/0/0/0/0/0/0/0/0 Lore% 0 Gallery% 5 Achievement% 4 Wizard Run 0 Options --------- Layout 0 ASCII 1 Keyboard 1 Movement Arrows Keybinds 0 Fullscreen 1 Font 14/SmallcapsGlow Map View 72x54 Zoom Use 0% Tactical HUD 0 Map Filters NONE Filters NONE Steam 0 RUN: c11d470d-2b0b-414f-b877-407247147ae7